{"text_format":"1","workbook":"xlsx","n_sheets":4,"sheets":["EDITION","EXPORT FIN","FAQ PROFILS","FAQ EXPORT"],"not_rendered":{"charts":0,"images":27,"macros":1,"external_links":0,"defined_names":6,"comments":0,"pivot_tables":0},"unopened":[],"bounds":{"document_bytes":16777216,"sheet_cells":100000,"rows_first":2000,"rows_last":500,"rows_between":2000,"halvings":0,"cell_chars":16384,"cell_head_chars":4096},"cells_cut":0,"cells_raw":0,"read":"whole","date_system":"1900"}

{"sheet":"EDITION","index":0,"n_rows":41,"n_cols":15,"rows_kept":41,"cut":false,"hidden":false,"merged":[[4,4,4,15],[5,4,5,15],[25,4,25,13],[26,4,26,13],[0,0,0,2],[1,4,1,15],[0,4,0,15],[9,0,9,1],[16,3,16,13],[2,4,2,15],[3,4,3,15]]}
["TABLE Caractéristiques",null,null,null,"MEMO"]
[1,null,null,null,"i Penser à cliquer sur Ignorer erreur dans les cellules avec triangle vert \nou désactiver \"Vérifier les erreurs\" dans les Options Excel -> Onglet Formules Sinon l'image des Attribut prendra l'icône triangle vert"]
[2,null,null,null,"i Ne modifiez pas les Noms de cellules ou les formules"]
[3,null,null,null,"i Si vous ajouter une image Caractéristique, compresser l'image à 96pp, coupez l'image, coller là dans la cellule, puis pour la placer parfaitement, appuyer 1 fois sur touche 6 et 1 fois sur touche 4"]
[4,null,null,null,"i Dans l'Onglet FIN, se trouve tous les calques principaux aux couleurs des profils de factions, en dehors de 1, tous sont en propriété Invisible"]
[5,"?",null,null,"i L'image des Atributs et des Equipements/Compétences est une image liée à la cellule, si vous modifier les couleurs, format, … de cette plage, l'image changera en prenant toute vos modificiations"]
[6,"?"]
[]
[]
["1. Indiquer le Type et les Caractéristiques de l'Unité"]
["Type d'Unité","IM","* IL / IM / ILO / TAG / DCD / EC / WB"]
["Caractéristique 1",2,"* Voir Table au-dessus pour la correspondance, 1 = vide"]
["Caractéristique 2",1]
["Caractéristique 3",1]
["Caractéristique 4",1]
["Caractéristique 5",1]
[null,null,null,"2. Compléter la fiche de l'Unité"]
[]
[null,null,"ISC: USAriadna Grunts, Line Rangers Regiments"]
[]
[null,null,null,null,"USAriadna Grunts, Line Ranger Regiment"]
[]
[null,null,null,null,"MOV","CC","TR","PH","VOL","BLI","PB","B","S","Disp"]
[null,null,null,null,"10-5","13","11","11","12","3","0","1","2","2"]
[]
[null,null,null,null,"Équipement :"]
[null,null,null,null,"Compétences Spéciales : "]
[]
[null,null,"Nom",null,null,"Armement | Équipement | Périphérique",null,null,null,null,"Armes de Mêlée",null,null,"CAP","P"]
[null,1,"GRUNT",null,null,"Fusil",null,null,null,null,"Arme CC",null,null,0,1]
[null,2,"GRUNT",null,null,"Lance-Flammes Lourd, Fusil à Pompe Léger",null,null,null,null,"Arme CC",null,null,0,1]
[null,3,"GRUNT",null,null,"Mitrailleuse",null,null,null,null,"Arme CC",null,null,1,2]
[null,4,"GRUNT",null,null,"Fusil, Lance-Grenades Léger",null,null,null,null,"Arme CC",null,null,1,1.5]
[null,5,"GRUNT (Tir Précis X)",null,null,"Fusil de Sniper",null,null,null,null,"Arme CC",null,null,0.5,2]
[null,6,"GRUNT (Infiltration)",null,null,"Lance-Flammes Lourd, Fusil à Pompe Léger",null,null,null,null,"Arme CC",null,null,0.5,1]
[null,7,"GRUNT (Observateur d'Artillerie)",null,null,"Fusil",null,null,null,null,"Arme CC",null,null,0,1]
[null,8,"GRUNT Infirmier (Médikit)",null,null,"Fusil",null,null,null,null,"Arme CC",null,null,0,1]
[null,9,"GRUNT Lieutenant",null,null,"Fusil",null,null,null,null,"Arme CC",null,null,1,1]
[null,10,"GRUNT Lieutenant",null,null,"Fusil, Lance-Grenades Léger",null,null,null,null,"Arme CC",null,null,1,1.5]
[null,11]
[null,12]

{"sheet":"EXPORT FIN","index":1,"n_rows":29,"n_cols":16,"rows_kept":29,"cut":false,"hidden":false,"merged":[]}
[]
[null,null,null,"3. Ajouter et ajuster le logo de l'unité au-dessus de la marque ronde d'ombre (i Tout le reste est calculé automatiquement, n'y touchez pas)"]
[null,null,null,"4. Pour changer le Calque Principal, aller dans Onglet Acceuil > Volet de Sélection > et appuyer sur le symbole - ou œil pour rendre visible le calque choisit"]
[null,null,null,"5. Exporter la plage des Cellules du Profil ou faite un Imprime écran"]
[]
[]
[]
[]
[]
[]
[null,null,{"$f":"EDITION!B11","v":"IM"}]
[]
[]
[]
[]
[]
[null,null,null,{"$f":"EDITION!C29","v":"Nom"},null,null,{"$f":"EDITION!F29","v":"Armement | Équipement | Périphérique"},null,null,null,null,{"$f":"EDITION!K29","v":"Armes de Mêlée"},null,null,{"$f":"EDITION!N29","v":"CAP"},{"$f":"EDITION!O29","v":"P"}]
[null,null,null,{"$f":"IF(EDITION!C30<>\"\",EDITION!C30,\"-\")","v":"GRUNT"},null,null,{"$f":"IF(D18<>\"-\",EDITION!F30,\"-\")","v":"Fusil"},null,null,null,null,{"$f":"IF(D18<>\"-\",EDITION!K30,\"-\")","v":"Arme CC"},null,null,{"$f":"IF(D18<>\"-\",EDITION!N30,\"-\")","v":0},{"$f":"IF(D18<>\"-\",EDITION!O30,\"-\")","v":1}]
[null,null,null,{"$f":"IF(EDITION!C31<>\"\",EDITION!C31,\"-\")","v":"GRUNT"},null,null,{"$f":"IF(D19<>\"-\",EDITION!F31,\"-\")","v":"Lance-Flammes Lourd, Fusil à Pompe Léger"},null,null,null,null,{"$f":"IF(D19<>\"-\",EDITION!K31,\"-\")","v":"Arme CC"},null,null,{"$f":"IF(D19<>\"-\",EDITION!N31,\"-\")","v":0},{"$f":"IF(D19<>\"-\",EDITION!O31,\"-\")","v":1}]
[null,null,null,{"$f":"IF(EDITION!C32<>\"\",EDITION!C32,\"-\")","v":"GRUNT"},null,null,{"$f":"IF(D20<>\"-\",EDITION!F32,\"-\")","v":"Mitrailleuse"},null,null,null,null,{"$f":"IF(D20<>\"-\",EDITION!K32,\"-\")","v":"Arme CC"},null,null,{"$f":"IF(D20<>\"-\",EDITION!N32,\"-\")","v":1},{"$f":"IF(D20<>\"-\",EDITION!O32,\"-\")","v":2}]
[null,null,null,{"$f":"IF(EDITION!C33<>\"\",EDITION!C33,\"-\")","v":"GRUNT"},null,null,{"$f":"IF(D21<>\"-\",EDITION!F33,\"-\")","v":"Fusil, Lance-Grenades Léger"},null,null,null,null,{"$f":"IF(D21<>\"-\",EDITION!K33,\"-\")","v":"Arme CC"},null,null,{"$f":"IF(D21<>\"-\",EDITION!N33,\"-\")","v":1},{"$f":"IF(D21<>\"-\",EDITION!O33,\"-\")","v":1.5}]
[null,null,null,{"$f":"IF(EDITION!C34<>\"\",EDITION!C34,\"-\")","v":"GRUNT (Tir Précis X)"},null,null,{"$f":"IF(D22<>\"-\",EDITION!F34,\"-\")","v":"Fusil de Sniper"},null,null,null,null,{"$f":"IF(D22<>\"-\",EDITION!K34,\"-\")","v":"Arme CC"},null,null,{"$f":"IF(D22<>\"-\",EDITION!N34,\"-\")","v":0.5},{"$f":"IF(D22<>\"-\",EDITION!O34,\"-\")","v":2}]
[null,null,null,{"$f":"IF(EDITION!C35<>\"\",EDITION!C35,\"-\")","v":"GRUNT (Infiltration)"},null,null,{"$f":"IF(D23<>\"-\",EDITION!F35,\"-\")","v":"Lance-Flammes Lourd, Fusil à Pompe Léger"},null,null,null,null,{"$f":"IF(D23<>\"-\",EDITION!K35,\"-\")","v":"Arme CC"},null,null,{"$f":"IF(D23<>\"-\",EDITION!N35,\"-\")","v":0.5},{"$f":"IF(D23<>\"-\",EDITION!O35,\"-\")","v":1}]
[null,null,null,{"$f":"IF(EDITION!C36<>\"\",EDITION!C36,\"-\")","v":"GRUNT (Observateur d'Artillerie)"},null,null,{"$f":"IF(D24<>\"-\",EDITION!F36,\"-\")","v":"Fusil"},null,null,null,null,{"$f":"IF(D24<>\"-\",EDITION!K36,\"-\")","v":"Arme CC"},null,null,{"$f":"IF(D24<>\"-\",EDITION!N36,\"-\")","v":0},{"$f":"IF(D24<>\"-\",EDITION!O36,\"-\")","v":1}]
[null,null,null,{"$f":"IF(EDITION!C37<>\"\",EDITION!C37,\"-\")","v":"GRUNT Infirmier (Médikit)"},null,null,{"$f":"IF(D25<>\"-\",EDITION!F37,\"-\")","v":"Fusil"},null,null,null,null,{"$f":"IF(D25<>\"-\",EDITION!K37,\"-\")","v":"Arme CC"},null,null,{"$f":"IF(D25<>\"-\",EDITION!N37,\"-\")","v":0},{"$f":"IF(D25<>\"-\",EDITION!O37,\"-\")","v":1}]
[null,null,null,{"$f":"IF(EDITION!C38<>\"\",EDITION!C38,\"-\")","v":"GRUNT Lieutenant"},null,null,{"$f":"IF(D26<>\"-\",EDITION!F38,\"-\")","v":"Fusil"},null,null,null,null,{"$f":"IF(D26<>\"-\",EDITION!K38,\"-\")","v":"Arme CC"},null,null,{"$f":"IF(D26<>\"-\",EDITION!N38,\"-\")","v":1},{"$f":"IF(D26<>\"-\",EDITION!O38,\"-\")","v":1}]
[null,null,null,{"$f":"IF(EDITION!C39<>\"\",EDITION!C39,\"-\")","v":"GRUNT Lieutenant"},null,null,{"$f":"IF(D27<>\"-\",EDITION!F39,\"-\")","v":"Fusil, Lance-Grenades Léger"},null,null,null,null,{"$f":"IF(D27<>\"-\",EDITION!K39,\"-\")","v":"Arme CC"},null,null,{"$f":"IF(D27<>\"-\",EDITION!N39,\"-\")","v":1},{"$f":"IF(D27<>\"-\",EDITION!O39,\"-\")","v":1.5}]
[null,null,null,{"$f":"IF(EDITION!C40<>\"\",EDITION!C40,\"-\")","v":"-"},null,null,{"$f":"IF(D28<>\"-\",EDITION!F40,\"-\")","v":"-"},null,null,null,null,{"$f":"IF(D28<>\"-\",EDITION!K40,\"-\")","v":"-"},null,null,{"$f":"IF(D28<>\"-\",EDITION!N40,\"-\")","v":"-"},{"$f":"IF(D28<>\"-\",EDITION!O40,\"-\")","v":"-"}]
[null,null,null,{"$f":"IF(EDITION!C41<>\"\",EDITION!C41,\"-\")","v":"-"},null,null,{"$f":"IF(D29<>\"-\",EDITION!F41,\"-\")","v":"-"},null,null,null,null,{"$f":"IF(D29<>\"-\",EDITION!K41,\"-\")","v":"-"},null,null,{"$f":"IF(D29<>\"-\",EDITION!N41,\"-\")","v":"-"},{"$f":"IF(D29<>\"-\",EDITION!O41,\"-\")","v":"-"}]

{"sheet":"FAQ PROFILS","index":2,"n_rows":73,"n_cols":14,"rows_kept":73,"cut":false,"hidden":false,"merged":[[3,13,4,18],[67,0,67,5],[73,0,73,2],[74,0,74,4],[6,13,6,18],[5,13,5,18],[7,13,7,18],[8,13,8,18],[9,13,9,18],[10,13,10,18],[11,13,11,18],[12,13,12,18],[0,0,0,11],[0,13,0,18]]}
["FAQ",null,null,null,null,null,null,null,null,null,null,null,null,"ATHENA - Outil d'export d'image\nTransformez Excel en éditeur d'image"]
[]
[]
[null,null,null,null,null,null,null,null,null,null,null,null,null,"1. FONCTIONNEMENT GÉNÉRAL"]
["1. FONCTIONNEMENT GÉNÉRAL"]
[]
["Il s'agit d'un outil de création de Profils FanMade pour les Jeux Infinity CODE ONE et N3/4. "]
["L'outil comporte un certain nombre d'automatisations, normalement vous n'avez qu'à suivre les étapes 1 / 2 / 3/ 4 / 5, sans modifications particulières"]
[]
[]
["Pour travailler suivre ces étapes :"]
[]
["Onglet",1,"Indiquez dans la Table, le Type d'Unité et les valeurs des Caractéristiques de celle-ci (Ordre Régulier, Piratable, Périphérique,…)"]
["Edition",null,"Pour connaitre les correspondances des valeurs des Caractéristiques et des images de celle-ci, vous trouvez en-dessus la table qui les indiquera"]
[null,null,"Cette Table renvoit des résultats automatiques, dans le Profil de l'onglet EXPORT FIN, seuls sont pris les valeurs, pas les formats, polices,…"]
[null,null,"Pour modifier les polices, ils faut aller dans cet Onglet"]
[null,null,"Si vous voulez ajouter une image Caractéristique, compresser l'image à 96pp, coupez l'image, coller là dans la cellule (ex B2), puis pour la placer parfaitement, "]
[null,null,"appuyer 1 fois sur touche 6 et 1 fois sur touche 4"]
[]
[null,2,"Complez la fiche de l'Unité et ses Profils d'Armes, tous sera renvoyer automatiquement dans l'Onglet EXPORT FIN"]
[null,null,"Les données sont envoyées en format valeurs au Profil définitif, sauf :"]
[null,null,"L'image des Atributs et des Equipements/Compétences est une image liée à la cellule, si vous modifiez les couleurs, format, …"]
[null,null,"de cette plage, l'image changera en prenant toutes vos modificiations, du coup si vous le souhaitez vous pouvez changer le vert Ariadna par une autre couleur"]
[null,null,"Le reste des formatages de cellules est fait pour rendre plus aisée visuellement la création du Profil"]
[null,null,"Ne pas modifier les Noms de Cellules sous peine d'interrompre les calculs autos"]
[null,null,"Pour la création des Profils d'Armes, il faut ajouter vos valeurs dans les cellules des colonnes C / F / K / M / O "]
[null,null,"Le Profil définitif ne reprendra pas en calculs, les valeurs dans les autres colonnes"]
[]
[]
["Onglet","3 + 4","Allez dans l'Onglet EXPORT FIN, pour changer le Logo d'unité et si besoin le calque principal de Profil de Faction"]
["EXPORT FIN",null,"A cette étape, normalement, tout apparait préformaté et ajusté correctement comme dans l'Army App"]
[]
[null,null,"Importez votre logo et ajustez celui-ci de façon à ce qu'il rentre au-dessus de la marque d'ombre ronde où se trouvait l'ancien logo"]
[]
[null,null,"Pour modifier le calque principal de Profil de Faction, il suffit pour le modifier d'aller :"]
[null,null,null,"Dans Onglet Acceuil"]
[null,null,null,null,"Option : Rechercher et Sélectionner (icone Loupe)"]
[null,null,null,null,null,"Puis Volet Sélection…"]
[]
[null,null,null,null,null,"Les calques sont déjà pré positionnés, il suffit de cliquer sur - pour les rendre visible et sur Oeuil"]
[null,null,null,null,null,"pour les rendre invisible"]
[]
[]
[]
[]
[]
[]
[]
[]
[]
[]
[]
[]
[]
[]
[]
[]
[]
[]
[]
[null,5,"Puis faire export ou imprim écran du Profil"]
[]
[null,null,"Pour exporter l'image du Profil sur votre disque dur (voir faq export), il suffit de sélectionner la Plage des cellules du Profil (cellules noires)"]
[null,null,"Cliquer sur le bouton export, choisir l'option export cellule et exporter l'image"]
[null,null,"L'export d'Excel vers le disque dur, entraine une perte de qualité"]
[]
[null,null,"Pour un export HD de ce Profil, vous pouvez faire un imprim écran à partir d'un logiciel d'imprim écran"]
[]
[]
[]
[]
[]
["Codé par Wizzy, dispo gratuitement sur Bureau-Aegis"]

{"sheet":"FAQ EXPORT","index":3,"n_rows":74,"n_cols":14,"rows_kept":74,"cut":false,"hidden":false,"merged":[[75,0,75,4],[12,13,12,18],[68,0,68,5],[74,0,74,2],[0,0,0,11],[3,13,3,18],[4,13,4,18],[5,13,5,18],[11,13,11,18],[0,13,0,18],[6,13,6,18],[7,13,7,18],[8,13,8,18],[9,13,9,18],[10,13,10,18]]}
["FAQ",null,null,null,null,null,null,null,null,null,null,null,null,"Outil d'export d'image\nTransformez Excel en éditeur d'image"]
[]
[]
[null,null,null,null,null,null,null,null,null,null,null,null,null,"1. FONCTIONNEMENT GÉNÉRAL"]
[null,null,null,null,null,null,null,null,null,null,null,null,null,"2. FAQ"]
[null,null,null,null,null,null,null,null,null,null,null,null,null,"1. Comment changer le nom de l'image, dans l'option 1 ?"]
[null,null,null,null,null,null,null,null,null,null,null,null,null,"2. L'interface n'indique pas la prise en charge du nom de l'image ou de la plage"]
[null,null,null,null,null,null,null,null,null,null,null,null,null,"3. Mon objet Forme ou graphique n'a pas été exporté ?"]
[null,null,null,null,null,null,null,null,null,null,null,null,null,"4. Comment supprimer un grand nombre d'objet dans la feuille ?"]
[null,null,null,null,null,null,null,null,null,null,null,null,null,"5. La prise en chage de la transparence est-elle gardée lors de l'exportation ?"]
[null,null,null,null,null,null,null,null,null,null,null,null,null,"6. Peut-on transformer une forme en image ?"]
[null,null,null,null,null,null,null,null,null,null,null,null,null,"7. Peut-on transformer cet outil en bouton macro ou macro complémentaire ?"]
[null,null,null,null,null,null,null,null,null,null,null,null,null,"8. Peut-on alleger l'application ?"]
[]
[]
[]
[]
[]
[]
[]
[]
[]
[]
["1. FONCTIONNEMENT GÉNÉRAL"]
["Outil d'exportation d'objet images, d'Excel -> vers le disque dur."]
["Excel permet d'importer des images et comprend de nombreuses fonctions d'édition d'image, mais ne posséde aucune fonction d'exportation."]
["Avec cet outil d'exportation, transformez Excel facilement en Editeur d'image."]
[]
["i","1/ Une fois votre image éditée. Pour lancer l'outil -> Appuyer sur le bouton \"EXPORTATION\""]
["i","L'interface de l'Outil est mouvante et ne bloque pas l'intéraction dans Excel."]
["i","2/ Le chemin d'exportation se fait par défaut sur votre Bureau "]
[null,"Pour le changer, apppuyer sur le bouton ",null,null,null,"Sélectionner le dossier où faire l'exportation"]
[null,"Vous pouvez entrer le chemin manuellement, mais pour éviter une erreur, il faudra ajouter le caractère \"\\\" "]
["i","3/ L'outil offre 3 options d'exportation d'image :"]
[null,"-> Option 1 : Exporter l'image sélectionnée vers le disque dur, dans le format de votre choix."]
[null,"-> Option 2 : Exporter l'image d'une plage cellules vers le disque dur, dans le format de votre choix."]
["i","L'image de la plage devant être nommée, un nom est proposé par défaut, vous pouvez le changer dans le cadre adjacent"]
[null,"-> Option 3 : Exporter l'ensemble des images de votre feuille vers le disque dur, dans le format de votre choix."]
["i","4/ Le format de l'image peut être personnalisée suivant 8 formats"]
["i","* L'interface avec les choix d'image ou plage, se remet à jour suivant :",null,null,null,null,null,"- Après chaque clic de choix d'option"]
[null,null,null,null,null,null,null,"- Ou en appuyant sur le bouton "]
["i","5/ Pour exporter l'image sélectionnée ou la plage, appuyer sur le bouton \"EXPORT\", l'exportation est faite en 1 seconde"]
["i","6/ Pour supprimer tous les objets de la feuille, vous pouvez appuyer sur le bouton corbeille, la suppression est définitive"]
[]
[]
["2. FAQ"]
["1. Comment changer le nom de l'image, dans l'option 1 ?"]
["L'export se fait sur le nom de l'objet, sélectionner l'objet et modifier son nom, sans caractère Windows interdits :*/:;"]
["2. L'interface n'indique pas la prise en charge du nom de l'image ou de la plage"]
["Il faut sélectionner l'image ou la plage, puis pour réinitialiser la prise en charge, soit changer d'option et la reprendre ou appuyer sur le bouton raffraichir"]
["3. Mon objet Forme ou graphique n'a pas été exporté ?"]
["Le code ne gère pas directement l'export de ces objets, par contre vous pouvez exporter l'image de la plage où se trouvent ces objets."]
["Vous pouvez aussi copier votre objet et la recoller en format image"]
["Le code gérant ces objets, est proposé en archive vba, en option 4"]
["4. Comment supprimer un grand nombre d'objet dans la feuille ?"]
["Vous pouvez en allant dans : L'onglet Acceuil > Déroulé de Rechercher et sélectionner > Choisir : Sélectionner les objets > Faire Ctrle+A > Supprimer"]
["* Penser à déselectionner le bouton \"Exportation\" par Ctrle+clic sur le bouton"]
["5. La prise en chage de la transparence est-elle gardée lors de l'exportation ?"]
["Non"]
["6. Peut-on transformer une forme en image ?"]
["Oui en la sélectionnant puis la copier et faire collage avancé en image"]
["7. Peut-on transformer cet outil en bouton macro dans la barre ou/et macro complémentaire ?"]
["-> A61macro complémentaire, il faut : Enregistrer sous > Format macro complémentaire "]
["Vous pouvez aussi transférer l'userform dans votre macro complémentaire, par simple déplacer"]
["-> Pour créer un bouton macro, dans la barre déroulante, Il faut soit avoir l'userform dans une macro complémentaire, soit l'avoir dans le fichier personnel"]
["Il suffira de suivre le tuto Microsoft :"]
["https://support.office.com/fr-fr/article/Affecter-une-macro-%C3%A0-un-bouton-728c83ec-61d0-40bd-b6ba-927f84eb5d2c"]
["Et le bouton macro, devra faire référence à la macro d'ouverture de l'userform."]
["Sub OUVRIR_EDITEUR() 'Macro d'ouverture par macro ou bouton macro\nEDITEUR_IMAGE.Show\nEnd Sub"]
["8. Peut-on alleger l'application ?"]
["Oui en supprimant l'onglet FAQ, le fichier doit faire ~400ko"]
[]
[]
["Codé par Wizzy, dispo gratuitement sur Bureau-Aegis"]